[Event "Champions Chess Tour AI Cup 2023"]
[Site "Chess.com"]
[Date "2023.09.28"]
[Round "54"]
[White "Vachier Lagrave, Maxime"]
[Black "Nepomniachtchi, Ian"]
[Result "1-0"]
[WhiteElo "2834"]
[BlackElo "2850"]
[ECO "C42"]
[EventDate "2023.??.??"]
[Annotator "rafael"]
[PlyCount "103"]
[Beauty "6877316385289"]
[EventType "team-tourn"]
[TimeControl "900+3"]

{[%evp 0,103,24,21,21,22,22,29,29,26,21,21,21,5,21,-15,14,14,17,4,30,-41,21,2,2,-1,-1,-21,3,-46,-11,-8,16,1,5,14,5,20,20,-22,-8,-11,0,0,14,20,16,22,22,4,51,49,40,29,27,17,17,17,28,30,59,64,63,55,62,49,104,77,130,130,136,146,146,146,146,128,128,133,133,67,98,91,163,160,165,165,179,207,329,349,348,354,378,306,306,312,334,338,344,344,349,357,385,395,396,400]} 
1.e4 e5 2.Nf3 Nf6 3.Nxe5 d6 4.Nd3 {The rarest of the knight retreats in this position of the Petroff Defense. White's idea is to exchange queens and press an endgame that is close to equality. Honestly, it's a choice closer to Carlsen's style than Vachier-Lagrave's, but the French GM will show that he can play technical endgames with the same skill he plays dynamic middlegames.} 4...Nxe4 5.Qe2 Qe7 6.Nf4 Nf6 7.d4 Qxe2+ 8.Bxe2 {Examining the results of the games played by strong grandmasters in this position, I get the impression that White's performance is much better than the computer's evaluation indicates. This shows that it's not so simple to defend the endgame.} 8...Nc6 9.c3 d5 10.f3 {A useful move, freeing the f2-square for the king and taking the e4-square from Black's knight.} 10...Nd8 $1 {[%c_effect d8;square;d8;type;GreatFind;persistent;true] An excellent move. The knight is not doing much on c6, so it's repositioned and the pawn moves to the square, reinforcing the center.} 11.Kf2 {Already a new move.} ( 11.g4 Ne6 12.h4 Bd6 13.Nxe6 Bxe6 {with a good position for Black in Deac-Li, Changsha 2019.} ) 11...Bd6 12.Na3 c6 ( 12...Bxa3 $2 {[%c_effect a3;square;a3;type;Mistake;persistent;true] is a big positional mistake. The bishop is much more important than the supposed weakness in White's pawn structure.} 13.bxa3 ) 13.Nc2 Bf5 ( 13...Ne6 {also leads to an equal position.} ) 14.Nd3 h5 {It's not clear that this move is better than the more timid pawn advance to h6.} ( 14...h6 ) 15.Bg5 ( 15.h4 {is interesting, fixing the kingside structure.} ) 15...Nd7 {Black doesn't need to be too worried about the capture on f6.} ( 15...Ne6 16.Bxf6 gxf6 {despite the damaged pawn structure, Black is active enough.} ) ( 15...h4 {is also possible.} ) 16.Ne3 Bh7 17.Bf4 Ke7 18.Bxd6+ Kxd6 19.Nf4 h4 20.g3 {White tries to open the h-file to put pressure on the kingside.} 20...g5 21.Nfg2 {A critical moment.} 21...h3 $6 {[%c_effect h3;square;h3;type;Inaccuracy;persistent;true] This move creates long-term problems for Black, as the h3-pawn becomes a weakness that will be a constant headache. There are two good alternatives.} ( 21...Ne6 {is an interesting pawn sacrifice:} 22.gxh4 gxh4 23.Nxh4 Nf4 {with good compensation.} ) ( 21...hxg3+ {is a more solid choice that is also better than the move played in the game.} 22.hxg3 Ne6 ) 22.Ne1 Ne6 23.Bd3 $1 {[%c_effect d3;square;d3;type;GreatFind;persistent;true] Controlling the f5-square.} 23...Raf8 ( 23...Ng7 $1 {[%c_effect g7;square;g7;type;GreatFind;persistent;true] is a better defense, preventing a white piece from going to f5.} ) 24.Bf5 ( 24.Bxh7 {is also possible:} 24...Rxh7 25.Nf5+ Kc7 26.Nd3 {And White has an advantage.} ) 24...Bg8 $6 {[%c_effect g8;square;g8;type;Inaccuracy;persistent;true] Not all ugly moves are bad, but this one is. It's better to capture the bishop.} ( 24...Bxf5 25.Nxf5+ Kc7 ) 25.Nd3 Ng7 26.Bxd7 {White has many tempting options and it's not easy to play in the most accurate way.} ( 26.Rhe1 {keeps the initiative after} 26...Bh7 27.Bxh7 Rxh7 28.c4 $1 {[%c_effect c4;square;c4;type;GreatFind;persistent;true]} ) 26...Kxd7 27.Ng4 {It's probably better to bring the rook to e1 or start advancing the queenside in order to create weaknesses in Black's position.} ( 27.Rhe1 ) ( 27.a4 ) 27...f6 ( 27...Kd6 $1 {[%c_effect d6;square;d6;type;GreatFind;persistent;true] is better.} ) 28.Nc5+ ( 28.a4 {This is the plan that White has to adopt sooner or later. Now is a good time to start.} ) 28...Kc8 29.Rhe1 Rh7 $2 {[%c_effect h7;square;h7;type;Mistake;persistent;true] This is a clear mistake. The knight should be attacked immediately.} ( 29...b6 $1 {[%c_effect b6;square;b6;type;GreatFind;persistent;true]} 30.Nd3 ( 30.Re7 {is not dangerous after} 30...Rf7 ) 30...Kd7 31.a4 Bh7 {with good chances of equalizing.} ) 30.Re2 $6 {[%c_effect e2;square;e2;type;Inaccuracy;persistent;true]} ( 30.a4 $1 {[%c_effect a4;square;a4;type;GreatFind;persistent;true] is more incisive. The idea is to push the pawn to a5, breaking up Black's position, since sooner or later he will need to play b7-b6 to expel the knight.} 30...b6 31.Nd3 {followed by a4-a5. If Black tries to avoid this with} 31...a5 {then} 32.b4 $1 {[%c_effect b4;square;b4;type;GreatFind;persistent;true] opening the queenside.} ) 30...b6 31.Nd3 Kd7 ( 31...Be6 $1 {[%c_effect e6;square;e6;type;GreatFind;persistent;true] is more stubborn.} 32.Rae1 Kd7 {with a defensible position.} ) 32.a4 $1 {[%c_effect a4;square;a4;type;GreatFind;persistent;true]} 32...a5 $2 {[%c_effect a5;square;a5;type;Mistake;persistent;true] The fatal mistake. There's no way to defend the queenside now.} ( 32...Kd6 33.a5 Nf5 {offers more chances of resistance.} ) 33.b4 $1 {[%c_effect b4;square;b4;type;GreatFind;persistent;true]} 33...axb4 34.Nxb4 {a4-a5 is coming and Black's king is very insecure. Black's pieces are poorly placed on the kingside. Vachier Lagrave achieves the type of position he loves so much, with initiative and an attack.} 34...c5 ( 34...Kd6 35.a5 bxa5 36.Rxa5 {and the attack persists.} ) 35.Nd3 ( 35.dxc5 {is also winning:} 35...bxc5 36.Na6 Kc6 37.Rb1 {Preparing to double rooks on the b-file or take the knight to b8.} ) 35...cxd4 36.cxd4 Ne6 37.Rb2 $1 {[%c_effect b2;square;b2;type;GreatFind;persistent;true]} 37...Nxd4 38.Rxb6 {All the white pieces are able to participate in the attack.} 38...Re7 39.Ra2 {A solid and practical choice for a rapid game, preventing the black rook from going to e2.} ( 39.a5 {is good enough, simply pushing the passed pawn.} ) ( 39.Nxf6+ $2 {[%c_effect f6;square;f6;type;Mistake;persistent;true] is wrong:} 39...Rxf6 $1 {[%c_effect f6;square;f6;type;GreatFind;persistent;true]} 40.Rxf6 Re2+ 41.Kg1 Ke7 $1 {[%c_effect e7;square;e7;type;GreatFind;persistent;true] Suddenly Black achieves counterplay.} ) 39...Be6 40.Ne3 Ra8 ( 40...Rc8 {creates more practical chances and requires precise play by White.} 41.a5 Nxf3 $5 {[%c_effect f3;square;f3;type;Interesting;persistent;true] A tricky idea.} 42.Kxf3 d4 43.Rxe6 $1 {[%c_effect e6;square;e6;type;GreatFind;persistent;true]} 43...Rxe6 ( 43...Kxe6 44.Nc2 ) 44.Nd5 $1 {[%c_effect d5;square;d5;type;GreatFind;persistent;true] with a winning advantage.} ) 41.a5 Ke8 42.a6 Kf7 43.Nc5 {Black has fallen into tremendous passivity. There is no longer any doubt about the final result.} 43...Raa7 44.Rd2 Rec7 45.Nb7 $1 {[%c_effect b7;square;b7;type;GreatFind;persistent;true] A nice way to finish the game. White wins material.} 45...Nc6 46.Rxc6 $1 {[%c_effect c6;square;c6;type;GreatFind;persistent;true]} 46...Rxc6 47.Nd8+ Kg7 48.Nxc6 Rxa6 49.Nd4 Bf7 50.g4 Kg6 51.Kg3 Ra3 52.Nef5 1-0

[Event "Champions Chess Tour Julius Generation Cup 2023"]
[Site "Chess.com"]
[Date "2023.09.02"]
[Round "53"]
[White "Lazavik, Denis"]
[Black "Abdusattorov, Nodirbek"]
[Result "1-0"]
[WhiteElo "2749"]
[BlackElo "2782"]
[ECO "D94"]
[EventDate "2023.??.??"]
[Annotator "rafael"]
[PlyCount "75"]
[Beauty "7834963804198"]
[EventType "team-tourn"]
[EventCountry "YUG"]
[TimeControl "900+3"]

1.d4 d5 2.c4 c6 3.Nf3 Nf6 4.e3 g6 {This variation is named after Carl Schlechter, a player who almost became the world champion and drew the most mysterious match in chess history, against Emanuel Lasker in 1910.} 5.Nc3 Bg7 6.Be2 O-O 7.O-O {Black has many choices in this position.} 7...Be6 ( 7...Bg4 ) ( 7...Nbd7 ) ( 7...dxc4 ) ( 7...a5 ) ( 7...b6 ) ( 7...e6 ) 8.b3 {White can also fight for the advantage with other moves.} ( 8.cxd5 cxd5 9.Qb3 Qb6 10.Qxb6 axb6 {with a slightly better endgame for White.} ) ( 8.Ng5 Bf5 9.Qb3 Qb6 {with a solid and passive position for Black.} ) 8...Ne4 9.Bb2 Nd7 10.Rc1 Ndf6 $6 {[%c_effect f6;square;f6;type;Inaccuracy;persistent;true]} ( 10...Nxc3 $1 {[%c_effect c3;square;c3;type;GreatFind;persistent;true] It's more accurate to exchange knights and avoid White's next move.} 11.Bxc3 Nf6 {as played in Ragger-Rapport, Szombathely 2011.} ) 11.Na4 $1 {[%c_effect a4;square;a4;type;GreatFind;persistent;true] A new and excellent move. White prepares Ne5 followed by f2-f3, expelling the knight and keeping pieces on the board, something useful for the side with a space advantage.} ( {This idea was played in a slightly worse version in a previous game:} 11.cxd5 {I don't think White should rush with this capture.} 11...cxd5 12.Na4 {Hoeschele-Roesner, Deizisau 1998.} ) 11...Rc8 ( 11...Bg4 {Maybe it's useful to exchange bishops, although Black's position is still unpleasant after} 12.Ne5 Bxe2 13.Qxe2 ) 12.Ne5 Nd7 ( 12...dxc4 $5 {[%c_effect c4;square;c4;type;Interesting;persistent;true]} 13.bxc4 b5 {This is an interesting pawn sacrifice suggested by the computer.} 14.cxb5 cxb5 15.Rxc8 Qxc8 16.Bxb5 Nd5 {with some compensation due to Black's active pieces. I think this way of playing is better than what happened in the game.} ) 13.Nd3 {The knight is ready to go to f4.} 13...Bf5 $6 {[%c_effect f5;square;f5;type;Inaccuracy;persistent;true]} ( 13...Re8 {is probably the lesser evil.} 14.Nf4 Nf8 ) 14.g4 $1 {[%c_effect g4;square;g4;type;GreatFind;persistent;true]} 14...Be6 15.Nf4 {Everything has gone wrong with Black's opening. But in a rapid game, unexpected chances can occur, as we shall see.} 15...Bh6 16.f3 ( 16.Bd3 {is also very good for White.} 16...Bxf4 17.exf4 ) ( 16.Nxe6 fxe6 17.Qd3 {followed by f2-f3 also doesn't look bad.} ) 16...Nef6 17.h4 $2 {[%c_effect h4;square;h4;type;Mistake;persistent;true] A mistake that puts Black back into the game.} ( 17.Nc3 {keeps a big advantage.} ) 17...Bxf4 18.exf4 {The problem with 17.h4 is that after ...h7-h5, it's not easy to support White's pawn structure, a problem that would easily be solved with a pawn on h3. Black should try to exploit this.} 18...dxc4 ( 18...Qc7 $1 {[%c_effect c7;square;c7;type;GreatFind;persistent;true]} 19.Qd2 h5 $1 {[%c_effect h5;square;h5;type;GreatFind;persistent;true] Black has good counterplay.} ) 19.bxc4 b5 $2 {[%c_effect b5;square;b5;type;Mistake;persistent;true] After this mistake, White gets a big advantage again.} ( 19...Qa5 $1 {[%c_effect a5;square;a5;type;GreatFind;persistent;true] is better.} ) 20.d5 $1 {[%c_effect d5;square;d5;type;GreatFind;persistent;true] This move was certainly missed by Abdusattorov. His idea would work well after 20.cxb5.} ( 20.cxb5 cxb5 21.Bxb5 Bxa2 {with a good position for Black.} ) 20...cxd5 21.cxb5 {White now has a huge positional advantage. The dark-squared bishop is too strong, and the pawns are dangerous on both flanks.} 21...Rxc1 22.Qxc1 Qa5 ( 22...h5 {is more stubborn.} ) 23.Qd1 {The queen is heading to d4.} 23...Rc8 ( 23...Qb4 24.Qd4 Qxd4+ 25.Bxd4 {The endgame is technically winning for White.} ) 24.Qd4 {Now g4-g5 is threatened, winning a piece.} 24...Rc2 25.Bd3 ( 25.Bc3 {is very good, too.} 25...Qc7 26.Bd1 $1 {[%c_effect d1;square;d1;type;GreatFind;persistent;true]} 26...Rxc3 ( 26...Rc1 27.Bb3 Rxf1+ 28.Kxf1 {There's no way of stopping g5.} ) 27.Nxc3 {with a winning material advantage.} ) 25...Rd2 26.f5 $1 {[%c_effect f5;square;f5;type;GreatFind;persistent;true]} ( 26.g5 $2 {[%c_effect g5;square;g5;type;Mistake;persistent;true] is too rushed. White even loses after} 26...Bh3 $1 {[%c_effect h3;square;h3;type;GreatFind;persistent;true]} ) 26...gxf5 27.g5 Rxd3 ( 27...Rxb2 {I think this gives more chances for saving the game, but White is winning after} 28.Nxb2 Nh5 29.Rc1 ) 28.Qxd3 Qxa4 29.gxf6 Qxh4 30.Rf2 Nxf6 31.Qd4 $1 {[%c_effect d4;square;d4;type;GreatFind;persistent;true] Black is unable to create any chance of perpetual check with the lonely queen. The game is over.} 31...Qh6 32.Qxa7 ( 32.Rh2 {wins the queen:} 32...Qg7+ ( 32...Qf8 {is even worse.} 33.Rg2+ Kh8 34.Qxf6+ exf6 35.Bxf6+ ) 33.Rg2 ) 32...Kf8 33.Bxf6 exf6 ( 33...Qxf6 34.Qb8+ Kg7 35.Rg2+ Kh6 36.Qh2+ Qh4 37.Qxh4# ) 34.Qc5+ Ke8 ( 34...Kg7 35.Rg2+ ) 35.Rg2 Kd7 36.Rg8 Qh4 37.Qc6+ Ke7 38.Re8# 1-0

[Event "Champions Chess Tour Julius Generation Cup 2023"]
[Site "Chess.com"]
[Date "2023.09.03"]
[Round "4"]
[White "Carlsen, Magnus"]
[Black "Firouzja, Alireza"]
[Result "1-0"]
[WhiteElo "2945"]
[BlackElo "2811"]
[ECO "C84"]
[EventDate "2023.??.??"]
[Annotator "pigle"]
[PlyCount "121"]
[Beauty "6323399830025"]
[EventType "team-tourn"]
[EventCountry "YUG"]
[TimeControl "900+3"]

1.e4 e5 2.Nf3 Nc6 3.Bb5 a6 4.Ba4 Nf6 5.O-O Be7 6.Nc3 {As far as I know, this is the first time that Carlsen has played this move. It is not as popular as 6.Re1 or 6.d3, but many strong grandmasters have tried it.} 6...b5 7.Bb3 O-O 8.d3 Na5 $2 {[%c_effect a5;square;a5;type;Mistake;persistent;true] I wonder whether this is a sacrifice or a blunder. In any case, Black has no compensation for the pawn.} ( 8...d6 {is the main move.} ) 9.Nxe5 Nxb3 10.axb3 b4 11.Ne2 Re8 12.Nf3 {In the normal lines in which Black sacrifices the e5-pawn, he usually already has well-developed pieces and is playing d5 quickly, something that doesn't happen here.} 12...c5 13.Nf4 d6 14.c4 $1 {[%c_effect c4;square;c4;type;GreatFind;persistent;true] A good way to close the game and bury the d5-break.} 14...Bf8 15.h3 a5 16.Re1 g6 17.Nd5 Nxd5 18.cxd5 Bg7 19.Bg5 f6 20.Bf4 {White has consolidated his position and is a healthy pawn up. Firouzja, however, continues to fight.} 20...g5 21.Be3 g4 22.hxg4 $6 {[%c_effect g4;square;g4;type;Inaccuracy;persistent;true] This move allows counterplay for Black.} ( 22.Nd2 $1 {[%c_effect d2;square;d2;type;GreatFind;persistent;true] is stronger:} 22...gxh3 23.Nc4 hxg2 24.Bf4 $1 {[%c_effect f4;square;f4;type;GreatFind;persistent;true]} 24...Ra6 25.Qh5 {followed by Re3-g3 with a winning position.} ) 22...Bxg4 {The pin turns out to be unpleasant for White.} 23.Qc2 {Now Black can disrupt the pawn structure.} ( 23.d4 {is a good alternative. Black should play} 23...f5 $1 {[%c_effect f5;square;f5;type;GreatFind;persistent;true] to keep the game complicated.} ) 23...Bxf3 24.gxf3 f5 $1 {[%c_effect f5;square;f5;type;GreatFind;persistent;true] Black has some compensation for the pawn now.} 25.Kf1 {The king must go to a safer place.} 25...Qf6 26.Rab1 ( 26.Ke2 {Maybe White should let the pawn go and try to win the endgame after} 26...Qxb2 27.Qxb2 Bxb2 28.Ra4 ) 26...fxe4 27.fxe4 Qf3 $2 {[%c_effect f3;square;f3;type;Mistake;persistent;true] Firouzja tries to avoid White's king walk, but Carlsen's reply refutes his plan.} ( 27...Kh8 $1 {[%c_effect h8;square;h8;type;GreatFind;persistent;true] is better, for instance:} 28.Ke2 Rf8 29.f4 Qh4 30.Rf1 Bd4 {with a good position.} ) 28.Qd1 $1 {[%c_effect d1;square;d1;type;GreatFind;persistent;true]} 28...Qxd1 {Otherwise, the king marches to e2, but the endgame is winning for White.} 29.Rexd1 a4 {Necessary to create some activity in the queenside.} 30.bxa4 Rxa4 31.Bf4 ( 31.Ke2 Ra2 32.Rd2 {followed by f4-Kf3 and White should convert the advantage.} ) 31...Rd8 32.b3 Ra6 33.Ke2 Rf8 34.Be3 Be5 35.Rd2 ( 35.f4 $1 {[%c_effect f4;square;f4;type;GreatFind;persistent;true] is a difficult move and the cleanest way to win:} 35...Bxf4 36.Rg1+ {Black's king is cut from the game, and this is the decisive factor.} 36...Kh8 37.Bxf4 Rxf4 38.Ke3 Rf7 39.Rbf1 Rxf1 40.Rxf1 Kg7 41.e5 $1 {[%c_effect e5;square;e5;type;GreatFind;persistent;true]} 41...dxe5 42.Ke4 {White's passed d-pawn decides the game.} ) 35...Rf7 36.Rc2 ( 36.d4 {is strong:} 36...cxd4 37.Bxd4 Bxd4 38.Rxd4 Ra2+ 39.Kd3 Rfxf2 40.Rxb4 {with a winning endgame.} ) 36...Kf8 37.d4 $1 {[%c_effect d4;square;d4;type;GreatFind;persistent;true]} 37...cxd4 38.Bd2 ( 38.Rc8+ {wins by force:} 38...Ke7 39.Bg5+ Kd7 40.Rbc1 d3+ {The only way to avoid mate.} 41.Kxd3 Bc3 42.Rb8 Rxf2 43.Rb7+ Ke8 44.Rh1 Rf3+ 45.Kc4 Ra5 46.Re7+ Kf8 47.Rc7 $1 {[%c_effect c7;square;c7;type;GreatFind;persistent;true]} ) 38...h5 39.Rc8+ $2 {[%c_effect c8;square;c8;type;Mistake;persistent;true] This gives Black drawing chances.} ( 39.Rf1 $1 {[%c_effect f1;square;f1;type;GreatFind;persistent;true] Preparing f2-f4.} 39...Bf4 40.Rc8+ Kg7 41.Rg1+ Kh7 42.Bxf4 Rxf4 43.Rc7+ Kh8 44.Rc6 Ra2+ 45.Kd3 {The rook checks are not dangerous, and White wins.} ) 39...Kg7 40.Rc2 {It's clear that Carlsen regrets his last move.} 40...Raa7 $2 {[%c_effect a7;square;a7;type;Mistake;persistent;true]} ( 40...Ra3 $1 {[%c_effect a3;square;a3;type;GreatFind;persistent;true] This endgame is difficult to play, and it's not surprising that both players make mistakes without much time on the clock. According to the computer, this move is the only way to save the game.} 41.Bxb4 Ra8 {Black will double rooks on the f-file with counterplay.} ) 41.Rg1+ Kh7 42.Rg5 $1 {[%c_effect g5;square;g5;type;GreatFind;persistent;true] The h-pawn is doomed.} 42...d3+ 43.Kxd3 Rxf2 44.Rxh5+ Kg6 45.Rg5+ $2 {[%c_effect g5;square;g5;type;Mistake;persistent;true]} ( 45.Rh6+ Kg7 46.Rh3 $1 {[%c_effect h3;square;h3;type;GreatFind;persistent;true] This move prevents a check on the third rank and threatens Bh6+.} ) 45...Kh7 $2 {[%c_effect h7;square;h7;type;Mistake;persistent;true]} ( 45...Kf7 $1 {[%c_effect f7;square;f7;type;GreatFind;persistent;true] gives good drawing chances, for example:} 46.Rf5+ Rxf5 47.exf5 Kf6 48.Bxb4 Rb7 $1 {[%c_effect b7;square;b7;type;GreatFind;persistent;true]} 49.Rc4 Kxf5 ) 46.Rf5 ( 46.Rh5+ $1 {[%c_effect h5;square;h5;type;GreatFind;persistent;true]} 46...Kg6 47.Rh6+ Kg7 48.Rh3 $1 {[%c_effect h3;square;h3;type;GreatFind;persistent;true]} ) 46...Rh2 47.Be3 $6 {[%c_effect e3;square;e3;type;Inaccuracy;persistent;true]} ( 47.Rc1 $1 {[%c_effect c1;square;c1;type;GreatFind;persistent;true] is better:} 47...Rh3+ 48.Kc4 Rc7+ 49.Kb5 $1 {[%c_effect b5;square;b5;type;GreatFind;persistent;true]} ( {But not} 49.Kxb4 $6 {[%c_effect b4;square;b4;type;Inaccuracy;persistent;true]} 49...Rb7+ ) 49...Rxc1 50.Bxc1 Rxb3 51.Bf4 $1 {[%c_effect f4;square;f4;type;GreatFind;persistent;true] with excellent winning chances.} ) 47...Rh3 $2 {[%c_effect h3;square;h3;type;Mistake;persistent;true]} ( 47...Rxc2 {is the only chance:} 48.Kxc2 Rc7+ 49.Kd2 Kg6 ) 48.Rh5+ $1 {[%c_effect h5;square;h5;type;GreatFind;persistent;true]} 48...Rxh5 49.Bxa7 {Carlsen is now completely winning, but both players had only seconds on the clock.} 49...Rh3+ 50.Kc4 Rh4 51.Re2 Kg6 52.Kxb4 Kg5 53.Kb5 Kf4 54.b4 Rh3 55.Bb6 $6 {[%c_effect b6;square;b6;type;Inaccuracy;persistent;true]} ( 55.Kc6 {is the best.} ) 55...Rb3 56.Bc7 Kf3 ( 56...Rc3 $1 {[%c_effect c3;square;c3;type;GreatFind;persistent;true]} 57.Kb6 Rc1 $1 {[%c_effect c1;square;c1;type;GreatFind;persistent;true]} 58.b5 Kf3 {with good drawing chances.} ) 57.Rc2 Kxe4 58.Kc6 ( 58.Kc4 $1 {[%c_effect c4;square;c4;type;GreatFind;persistent;true] is the correct move.} ) 58...Rxb4 59.Bxd6 Bxd6 $2 {[%c_effect d6;square;d6;type;Mistake;persistent;true]} ( 59...Kd3 $3 {[%c_effect d3;square;d3;type;Brilliant;persistent;true]} 60.Rc1 Bb2 $1 {[%c_effect b2;square;b2;type;GreatFind;persistent;true] and Black has chances of reaching a drawn rook and bishop versus rook endgame.} ) 60.Kxd6 Rb6+ 61.Kc7 1-0